bitfinex/quotes_ETHUSD_20250107
["timestamp","ask_amount","ask_price","bid_price","bid_amount"]
[1736210757526,0.54434847,3684.4,3683.7,0.8252421]
[1736210758296,0.54434847,3684.4,3683.7,0.7981]
[1736210759960,2.71424,3684.3,3683.7,0.7981]
[1736210760957,0.54434847,3684.4,3683.7,0.7981]
[1736210761252,1.13464477,3684.6,3683.8,0.02714499]
[1736210761592,0.54789832,3684.5,3683.8,0.02714499]
[1736210761791,0.54789832,3684.5,3683.7,0.7981]
[1736210761996,0.54789832,3684.5,3683.8,0.02714221]
[1736210762664,0.54789832,3684.5,3683.7,0.7981]
[1736210764129,2.7142,3684.4,3683.7,0.7981]
[1736210764526,2.71422,3684.3,3683.7,0.7981]
[1736210768108,0.8328,3684.4,3683.7,0.7981]
[1736210768269,2.71453,3683.9,3683.4,0.7608]
[1736210768588,3.54694,3684.4,3683.4,0.7608]
[1736210768589,2.71436,3684.2,3683.4,0.7608]
[1736210768788,3.42647681,3684.2,3683.4,0.7608]
[1736210768958,2.71438,3684.1,3683.4,0.7608]
[1736210770502,0.71211681,3684.2,3683.4,0.7608]
[1736210771252,2.71445,3684.0,3683.0,0.7532]
[1736210771469,0.8043,3684.1,3683.1,0.195]
[1736210771750,2.71463,3683.8,3683.1,0.195]
[1736210771949,2.71483,3683.5,3682.9,2.51039632]
[1736210772396,2.71483,3683.5,3683.1,0.91617604]
[1736210772758,0.7867,3683.7,3683.1,0.91617604]
[1736210772759,2.71492,3683.4,3683.1,0.91617604]
[1736210773990,2.71492,3683.4,3682.9,1.1369255]
[1736210774189,2.71492,3683.4,3682.6,0.195]
[1736210774512,2.71478,3683.6,3682.6,0.195]
[1736210775273,2.71478,3683.6,3682.7,0.91653807]
[1736210775517,0.7867,3683.7,3682.8,0.80345238]
[1736210775822,1.13464477,3683.8,3682.8,0.80345238]
[1736210776314,1.13464477,3683.8,3682.8,0.7763]
[1736210776740,6.25967909,3683.9,3682.9,0.91653807]
[1736210778640,0.93912501,3683.8,3682.9,0.91653807]
[1736210778799,3.65374501,3683.8,3682.9,0.91653807]
[1736210779833,0.93912501,3683.7,3682.8,0.7763]
[1736210780514,2.71477,3683.6,3682.8,0.7763]
[1736210781024,2.71481,3683.5,3682.8,0.7763]
[1736210782308,2.71488,3683.4,3682.8,0.7763]
[1736210784329,2.71488,3683.4,3682.5,2.0887255]
[1736210784330,2.71497,3683.3,3682.5,2.0887255]
[1736210784898,0.7906,3683.4,3682.5,0.7568]
[1736210785185,2.71518,3683.0,3682.5,0.7568]
[1736210785408,0.7906,3683.4,3682.5,0.7568]
[1736210785409,2.71526,3682.9,3682.5,0.7568]
[1736210785609,2.71526,3682.9,3682.4,2.51039632]
[1736210786384,2.71526,3682.9,3682.2,0.9377722]
[1736210786694,0.7897,3682.8,3682.2,0.9377722]
[1736210787484,0.7897,3682.8,3682.2,0.1809722]
[1736210787830,2.71539,3682.7,3682.2,0.1809722]
[1736210788029,2.71563,3682.4,3682.2,0.1809722]
[1736210788331,3.12760725,3682.7,3682.2,0.1809722]
[1736210788533,2.71569,3682.3,3682.2,0.1809722]
[1736210789643,5.71569,3682.3,3682.2,0.1809722]
[1736210790148,6.53669,3682.3,3682.2,0.1809722]
[1736210790315,6.54419,3682.3,3682.2,0.1809722]
[1736210791596,7.48167964,3682.3,3682.2,0.1809722]
[1736210791933,8.84119517,3682.3,3682.2,0.1809722]
[1736210792950,7.90370553,3682.3,3682.2,0.1809722]
[1736210793960,2.71638,3681.4,3681.1,0.7981]
[1736210794105,2.71642,3681.4,3680.8,0.7981]
[1736210796336,3.0,3681.8,3680.8,0.7981]
[1736210796500,3.0,3681.5,3680.8,0.7981]
[1736210797410,0.8194,3682.3,3681.1,0.7577]
[1736210797730,3.24647755,3682.4,3681.4,0.7577]
[1736210798098,3.0,3682.3,3681.4,0.7577]
[1736210798809,2.71571,3682.3,3681.4,0.7577]
[1736210799237,3.02166095,3682.3,3681.4,0.7577]
[1736210799426,2.71578,3682.2,3681.4,0.7577]
[1736210800133,0.30595095,3682.3,3681.4,0.7577]
[1736210800650,2.71587,3682.1,3681.4,0.7577]
[1736210800841,0.8194,3682.2,3681.4,0.7577]
[1736210801011,2.71584,3682.1,3681.4,0.7577]
[1736210801509,2.71615,3681.7,3680.8,0.7981]
[1736210802313,2.71598,3682.0,3680.8,0.82526524]
[1736210802835,2.71598,3682.0,3680.8,0.7981]
[1736210802836,0.0075,3681.9,3680.8,0.7981]
[1736210803047,2.71639,3681.4,3680.8,0.7981]
[1736210804429,0.5333239,3681.5,3680.8,0.7981]
[1736210804944,1.47110283,3681.9,3680.8,0.7981]
[1736210805343,2.71629,3681.5,3680.8,0.7981]
[1736210806027,3.04213166,3681.5,3680.8,0.7981]
[1736210807032,0.32584166,3681.5,3680.8,0.7981]
[1736210808614,2.71628,3681.5,3680.8,0.7981]
[1736210809223,2.71643,3681.3,3680.8,0.7981]
[1736210809960,2.71651,3681.2,3680.8,0.7981]
[1736210810160,2.71659,3681.1,3680.8,0.7981]
[1736210810461,0.271659,3681.0,3680.1,0.195]
[1736210811124,3.271659,3681.0,3679.9,0.7672]
[1736210811324,2.71684,3680.8,3679.9,0.7672]
[1736210811537,2.71687,3680.7,3679.9,0.7672]
[1736210811741,3.271659,3681.0,3679.9,0.7672]
[1736210811960,2.71697,3680.6,3679.9,0.7672]
[1736210812353,2.71701,3680.6,3679.9,0.7672]
[1736210812666,2.71702,3680.5,3679.9,0.7672]
[1736210813229,2.71709,3680.4,3679.9,0.7672]
[1736210813544,2.988799,3680.4,3679.9,0.7672]
[1736210814929,0.271709,3680.4,3679.9,0.7672]
[1736210815165,3.0,3680.6,3679.9,0.7672]
[1736210815342,2.71695,3680.6,3679.9,0.7672]
[1736210817164,2.7168,3680.8,3679.9,0.7672]
[1736210817389,2.7168,3680.8,3680.0,0.02717275]
[1736210817533,2.71669,3681.0,3680.1,0.7981]
[1736210818180,2.71672,3680.9,3680.1,0.7981]
[1736210819148,2.71689,3680.7,3680.1,0.7981]
[1736210819284,2.71717,3680.3,3679.3,0.195]
[1736210819616,0.7562,3680.7,3679.4,0.7981]
[1736210819617,2.71728,3680.2,3679.4,0.7981]
[1736210820596,2.71709,3680.5,3679.4,0.7981]
[1736210820799,0.7562,3680.7,3679.5,0.7975747]
[1736210820995,0.3744652,3680.6,3679.5,0.7975747]
[1736210821687,2.71717,3680.3,3679.5,0.7704]
[1736210822420,2.71717,3680.3,3679.5,0.7975747]
[1736210822639,3.0,3680.7,3679.5,0.7975747]
[1736210823730,2.71716,3680.3,3679.5,0.7704]
[1736210825591,2.71701,3680.6,3679.5,0.7704]
[1736210825792,3.26496455,3680.9,3680.0,2.58645443]
[1736210826038,2.71679,3680.9,3680.1,0.7946]
[1736210827146,2.71688,3680.7,3680.1,0.7946]
[1736210827909,3.571679,3680.9,3680.1,0.7946]
[1736210828110,3.288419,3680.9,3680.1,0.7946]
[1736210828649,2.71681,3680.8,3680.1,0.7946]
[1736210830839,0.571679,3680.9,3679.9,0.7981]
[1736210830840,2.71691,3680.7,3679.9,0.7981]
[1736210831215,3.288419,3680.9,3679.9,0.7981]
[1736210832160,3.0456419,3680.8,3679.9,0.7981]
[1736210832731,2.71699,3680.6,3679.9,0.7981]
[1736210835323,0.8332,3680.6,3679.9,0.7981]
[1736210835503,2.7171,3680.4,3679.9,0.7981]
[1736210835832,0.8332,3680.6,3679.9,0.7981]
[1736210835979,0.8332,3680.6,3679.5,0.7981]
[1736210835980,2.71731,3680.1,3679.5,0.7981]
[1736210837420,2.71715,3680.4,3679.5,0.7981]
[1736210837589,2.71718,3680.3,3679.5,0.7981]
[1736210838567,1.37430906,3680.6,3679.6,2.58645443]
[1736210838769,2.71702,3680.5,3679.7,0.7951]
[1736210838991,2.71688,3680.7,3679.9,2.58645443]
[1736210839272,1.70632377,3680.9,3680.0,0.7951]
[1736210839422,0.66802211,3680.8,3680.0,0.7951]
[1736210839617,0.7948,3680.6,3680.0,0.7951]
[1736210839872,0.7948,3680.6,3679.5,0.7981]
[1736210840182,2.71739,3680.0,3679.5,0.7981]
[1736210841263,2.71702,3680.5,3679.5,0.7981]
[1736210841264,2.71724,3680.2,3679.5,0.7981]
[1736210842383,2.988964,3680.2,3679.5,0.7981]
[1736210843970,2.71724,3680.2,3679.5,0.7981]
[1736210844479,3.85152477,3680.7,3680.0,0.7981]
[1736210844859,2.71688,3680.7,3680.0,0.7981]
[1736210846374,2.71699,3680.6,3680.0,0.7981]
[1736210847122,0.7989,3680.5,3680.0,0.7981]
[1736210847328,0.37989,3680.4,3679.5,0.7981]
[1736210847573,0.7989,3680.5,3679.5,0.7981]
[1736210847740,2.71725,3680.2,3679.5,0.7981]
[1736210850084,2.71732,3680.1,3679.5,0.7981]
[1736210850376,3.0,3680.3,3679.5,0.7981]
[1736210850582,2.71746,3679.9,3679.5,0.7981]
[1736210850736,2.989206,3679.9,3679.5,0.7981]
[1736210851135,3.810006,3679.9,3679.2,0.7981]
[1736210851339,1.092546,3679.9,3679.2,0.7981]
[1736210851663,3.0,3680.3,3679.3,2.58645443]
[1736210851664,2.71731,3680.2,3679.3,2.58645443]
[1736210851863,2.71731,3680.2,3679.4,0.7539]
[1736210852063,3.2505665,3680.2,3679.4,0.7539]
[1736210852710,0.5332565,3680.2,3679.4,0.7539]
[1736210852905,1.13464477,3680.3,3679.5,0.02717777]
[1736210853192,1.13464477,3680.3,3679.6,0.7539]
[1736210853757,5.7171,3680.4,3679.6,1.67168289]
[1736210854067,6.68593567,3680.4,3679.6,1.67168289]
[1736210854989,0.93948706,3680.3,3679.6,0.7539]
[1736210855194,0.93948706,3680.3,3679.7,0.02717481]
[1736210855498,0.93948706,3680.3,3679.8,0.7539]
[1736210856192,3.85165477,3680.6,3679.8,0.7539]
[1736210856355,5.01153592,3680.6,3679.8,0.7539]
[1736210856837,2.29452592,3680.6,3679.8,0.7539]
[1736210857035,2.71702,3680.5,3679.8,0.7539]
[1736210857258,0.93983593,3680.5,3679.8,0.7539]
[1736210858661,3.87683115,3680.6,3679.9,0.9178311]
[1736210860105,3.87683115,3680.6,3679.8,0.7539]
[1736210860106,5.01147592,3680.6,3679.8,0.7539]
[1736210861501,0.93992552,3680.5,3679.8,0.7539]
[1736210862806,4.13464477,3680.7,3679.9,0.91786526]
[1736210862807,3.0,3680.7,3679.9,0.91786526]
[1736210863190,1.68061333,3680.8,3680.0,0.7603]
[1736210863449,1.13464477,3680.8,3680.3,0.7981]
[1736210863764,1.13464477,3680.8,3680.5,0.7981]
[1736210864534,1.13464477,3681.0,3680.5,0.7981]
[1736210866231,1.13464477,3681.2,3680.5,0.7981]
[1736210866389,1.13464477,3681.2,3680.5,0.9931]
[1736210866795,7.941528,3681.2,3680.5,0.9931]
[1736210867250,7.74711536,3681.2,3680.5,0.9931]
[1736210868541,0.94023213,3681.1,3680.5,0.9931]
[1736210871337,3.0,3681.4,3680.5,0.9931]
[1736210872574,1.13464477,3681.5,3680.5,0.9931]
[1736210872771,0.71652684,3681.4,3680.5,0.9931]
[1736210872976,3.0,3681.2,3680.5,0.9931]
[1736210873534,2.7165,3681.2,3680.5,0.9931]
[1736210874044,6.43288684,3681.4,3680.5,0.9931]
[1736210874248,3.0,3681.2,3680.5,0.9931]
[1736210874458,3.99164832,3681.2,3680.5,0.9931]
[1736210876033,0.99164832,3681.2,3680.5,0.9931]
[1736210876234,2.71653,3681.2,3680.5,0.9931]
[1736210876482,2.71653,3681.2,3680.5,0.7981]
[1736210877037,0.797,3681.3,3680.5,0.7981]
[1736210877238,4.93164477,3681.3,3679.9,1.9350255]
[1736210877434,2.71675,3680.9,3679.9,1.9350255]
[1736210877735,2.71682,3680.8,3679.9,1.96219587]
[1736210878338,2.71665,3681.0,3680.0,0.7981]
[1736210878753,1.13464477,3681.1,3680.2,0.7981]
[1736210879224,1.13464477,3681.1,3680.3,0.02716946]
[1736210879434,1.13464477,3681.1,3680.4,0.7981]
[1736210879999,1.13464477,3681.1,3680.6,2.58645443]
[1736210880319,3.37780964,3681.6,3680.8,0.7981]
[1736210880320,4.13464477,3681.5,3680.8,0.7981]
[1736210881292,1.13464477,3681.5,3680.8,0.7981]
[1736210881635,0.55305651,3681.6,3680.8,0.7981]
[1736210881848,4.35837583,3681.6,3680.8,0.7981]
[1736210882328,4.07460583,3681.6,3680.8,0.7981]
[1736210884235,0.93937355,3681.5,3680.8,0.7981]
[1736210885424,0.55305651,3681.6,3680.8,0.7981]
[1736210886094,3.26926651,3681.6,3680.8,0.7981]
[1736210886294,0.32692665,3681.5,3680.8,0.7981]
[1736210886535,0.32692665,3681.5,3680.3,5.30356443]
[1736210886756,0.778,3681.4,3680.3,2.51104907]
[1736210886917,0.778,3681.4,3680.4,0.7809]
[1736210887116,3.49412,3681.8,3680.5,0.7809]
[1736210887362,0.76287648,3681.7,3680.7,3.49773]
[1736210887556,1.13464477,3682.0,3681.2,2.58645443]
[1736210887759,1.13464477,3682.0,3681.9,0.7981]
[1736210888064,2.26928955,3682.1,3682.0,3.51397]
[1736210888961,2.26928955,3682.1,3682.0,3.52147]
[1736210889471,2.81842525,3683.2,3682.0,3.52147]
[1736210889472,0.93912333,3683.3,3682.6,0.7981]
[1736210889619,1.61697318,3683.3,3682.6,0.7981]
[1736210890779,0.67784985,3683.3,3682.6,0.7981]
[1736210891463,1.13575006,3683.9,3682.8,0.7981]
[1736210891645,1.13575006,3683.9,3682.8,0.9931]
[1736210892161,1.13575006,3683.9,3682.8,3.70839]
[1736210892762,3.85027006,3683.9,3682.8,0.9931]
[1736210892966,2.71452,3683.9,3682.8,0.9931]
[1736210893124,3.8193,3684.0,3682.9,0.02714952]
[1736210893125,0.653382,3683.8,3682.9,0.02714952]
[1736210893517,0.653382,3683.8,3682.8,3.70842]
[1736210894598,0.653382,3683.8,3682.9,0.02714881]
[1736210894804,0.653382,3683.8,3682.8,3.70842]
[1736210894805,0.8193,3684.0,3682.8,3.70842]
[1736210895511,0.8193,3684.0,3682.9,0.02714881]
[1736210895715,0.8193,3684.0,3683.0,0.7632]
[1736210897134,0.55208409,3684.3,3682.8,2.91032]
[1736210897135,0.8063,3684.2,3683.2,2.58645443]
[1736210897446,3.0,3684.1,3683.3,0.7653]
[1736210897581,0.571431,3684.0,3683.3,0.9603]
[1736210897778,0.0075,3684.4,3683.3,0.9603]
[1736210897779,2.71421,3684.3,3683.3,0.9603]
[1736210898038,2.71442,3684.1,3683.3,0.9603]
[1736210898231,3.0,3684.1,3683.3,0.9603]
[1736210899390,3.5204,3684.5,3683.3,0.9603]
[1736210899591,2.71378,3684.9,3683.6,0.7653]
[1736210899815,0.26014544,3684.8,3683.9,0.7653]
[1736210900105,0.8063,3685.1,3683.9,0.7653]
[1736210901137,0.8063,3685.1,3684.1,2.58645443]
[1736210901349,0.8063,3685.4,3684.3,0.7653]
[1736210901499,3.0,3685.3,3684.3,0.7653]
[1736210901699,0.651972,3685.2,3684.3,0.7653]
[1736210904175,3.0,3685.4,3684.3,0.7653]
[1736210904397,0.7919,3685.7,3684.4,0.0271396]
[1736210904541,3.50509,3685.7,3684.5,0.7981]
[1736210904737,2.71328,3685.6,3684.5,0.7981]
[1736210905087,3.0,3685.5,3684.5,0.7981]
[1736210905871,3.571328,3685.5,3684.5,0.7981]
[1736210906174,2.71341,3685.4,3684.5,0.7981]
[1736210907064,0.53340354,3685.7,3684.5,0.7981]
[1736210907065,3.0,3685.5,3684.5,0.7981]
[1736210907269,2.71334,3685.5,3684.5,0.7981]
[1736210908349,2.71349,3685.3,3684.5,0.7981]
[1736210908556,0.351939,3685.2,3684.5,0.9931]
[1736210909056,0.351939,3685.2,3684.5,0.7981]
[1736210909609,3.065489,3685.2,3684.5,0.7981]
[1736210910203,3.0,3685.0,3684.5,0.7981]
[1736210911512,0.351939,3685.2,3684.5,0.7981]
[1736210911900,3.0,3685.2,3684.5,0.7981]
[1736210913648,2.71357,3685.2,3684.5,0.7981]
[1736210913845,0.7598,3685.1,3683.9,0.7981]
[1736210914050,3.0,3684.6,3683.9,0.7981]
[1736210914222,3.0,3684.6,3684.0,0.195]
[1736210914759,5.71377,3685.0,3684.0,0.195]
[1736210914907,6.361127,3685.0,3684.0,0.195]
[1736210915327,6.361127,3685.0,3684.1,0.7981]
[1736210915525,6.361127,3685.0,3683.9,0.02714196]
[1736210915526,5.71444,3684.0,3683.9,0.02714196]
[1736210915732,3.0,3683.9,3682.3,0.7981]
[1736210915968,3.0,3683.6,3682.3,0.7981]
[1736210916162,2.71511,3683.1,3682.3,0.7981]
[1736210916462,1.33704544,3683.5,3682.3,0.7981]
[1736210916463,2.71503,3683.2,3682.3,0.7981]
[1736210917266,1.33704544,3683.5,3682.3,0.7981]
[1736210917422,0.7596,3684.0,3682.5,0.7981]
[1736210917604,2.71461,3683.8,3682.5,0.7981]
[1736210918649,2.71461,3683.8,3682.6,0.7981]
[1736210918806,2.71468,3683.7,3682.6,0.7981]
[1736210920467,3.565,3683.9,3682.6,0.7981]
[1736210920670,3.0,3683.3,3682.6,0.7981]
[1736210921361,3.0,3683.8,3682.6,0.7981]
[1736210921525,5.71464,3683.8,3682.7,0.02715192]
[1736210921729,2.7143,3684.2,3682.9,6.06148443]
[1736210921928,2.71437,3684.1,3682.9,6.06148443]
[1736210922125,2.71437,3684.1,3682.9,0.7598]
[1736210922324,3.0,3684.0,3682.9,0.7598]
[1736210925730,2.71444,3684.0,3682.9,0.7598]
[1736210927672,0.40905799,3684.2,3682.9,0.7598]
[1736210927879,3.0,3683.8,3682.9,0.7598]
[1736210928178,2.7146,3683.8,3682.9,0.7598]
[1736210929761,3.0,3684.0,3682.9,0.7598]
[1736210930140,2.71445,3684.0,3682.9,0.7598]
[1736210930979,3.0,3683.8,3682.9,0.7598]
[1736210931324,3.61374958,3683.8,3682.9,0.7598]
[1736210933034,2.71466,3683.7,3682.9,0.7598]
[1736210934063,0.61374958,3683.8,3682.9,0.7598]
[1736210934262,2.71459,3683.8,3682.9,0.7598]
[1736210934461,3.4229458,3684.1,3682.9,0.7598]
[1736210934647,2.71484,3683.5,3682.9,0.7598]
[1736210935515,2.71466,3683.7,3682.9,0.7598]
[1736210935964,3.0,3683.9,3682.9,0.7598]
[1736210936153,1.10609659,3683.8,3682.9,0.7598]
[1736210936347,2.71453,3683.9,3682.9,0.7598]
[1736210939991,3.0,3683.8,3682.9,0.7598]
[1736210940574,2.71453,3683.9,3682.9,0.7598]
[1736210941276,3.12334799,3684.2,3683.2,0.765]
[1736210942262,0.53612211,3684.4,3683.4,0.7981]
[1736210942500,3.0,3684.2,3683.4,0.7981]
[1736210944301,0.53612211,3684.4,3683.4,0.7981]
[1736210944460,1.13575006,3684.9,3684.4,0.7981]
[1736210944805,1.13575006,3684.9,3684.8,0.7981]
[1736210945172,1.13575006,3684.9,3684.8,3.51195]
[1736210945360,1.13575006,3684.9,3684.8,0.7981]
[1736210946256,1.13575006,3684.9,3684.8,3.53908683]
[1736210946462,1.13575006,3684.9,3684.8,3.51195]
[1736210946874,1.13575006,3686.4,3684.9,0.7981]
[1736210947102,1.12196355,3686.3,3685.4,0.7981]
[1736210947300,0.8281,3686.0,3685.1,0.7981]
[1736210947488,2.71351,3685.3,3685.1,0.7981]
[1736210947873,2.71394,3684.7,3684.5,0.7981]
[1736210949028,2.71398,3684.7,3684.3,1.1369255]
[1736210949332,2.71398,3684.7,3684.2,2.69748826]
[1736210949333,2.71398,3684.7,3684.2,0.9921]
[1736210949536,2.71363,3685.1,3684.2,0.9921]
[1736210949669,2.714,3684.6,3684.2,0.9921]
[1736210950004,2.714,3684.6,3684.2,0.194]
[1736210950226,2.714,3684.6,3683.9,0.7981]
[1736210950712,2.71412,3684.5,3683.9,0.7981]
[1736210951203,2.7139,3684.8,3683.9,0.7981]
[1736210951561,2.7139,3684.8,3684.1,2.58645443]
[1736210952280,1.13575006,3685.4,3684.4,2.58645443]
[1736210952480,1.13575006,3685.4,3684.5,0.7981]
[1736210953103,3.0,3685.4,3684.5,0.7981]
[1736210953701,2.71341,3685.4,3684.5,0.7981]
[1736210954206,2.71341,3685.4,3684.5,0.82523788]
[1736210954608,2.71341,3685.4,3684.5,0.7981]
[1736210955000,1.13575006,3685.9,3684.5,0.82523787]
[1736210955313,2.71327,3685.6,3684.8,0.7981]
[1736210955515,2.71327,3685.6,3684.8,0.9921]
[1736210955877,2.7131,3685.9,3685.0,2.58645443]
[1736210956078,2.7131,3685.9,3685.1,0.7812]
[1736210956820,3.0,3685.8,3685.1,0.7812]
[1736210957118,2.71314,3685.8,3685.1,0.7812]
[1736210957321,0.271314,3685.8,3685.1,0.7812]
[1736210957522,0.0075,3686.1,3685.1,0.7812]
[1736210957523,2.71327,3685.6,3685.1,0.7812]
[1736210958116,3.0,3686.0,3685.1,0.7812]
[1736210958419,2.71334,3685.5,3685.1,0.7812]
[1736210958914,0.8155,3685.5,3684.5,0.7981]
[1736210959134,2.71351,3685.3,3684.5,0.9921]
[1736210959825,0.352901,3685.3,3684.5,0.7981]
[1736210959989,2.71364,3685.1,3684.5,0.7981]
[1736210962128,2.71372,3685.0,3684.5,0.7981]
[1736210963008,3.066451,3685.3,3684.5,0.7981]
[1736210963207,2.71356,3685.2,3684.5,0.7981]
[1736210963436,0.3066461,3685.1,3684.5,0.7981]
[1736210963633,3.0202761,3685.1,3684.5,0.7981]
[1736210964423,0.3066461,3685.1,3684.5,0.7981]
[1736210964627,2.71372,3685.0,3684.5,0.7981]
[1736210965341,2.7137,3685.0,3684.2,0.7798]
[1736210965522,2.71405,3684.6,3684.2,0.7798]
[1736210966907,3.0,3685.6,3684.2,0.7798]
[1736210967154,3.0,3685.4,3684.2,0.7798]
[1736210967355,2.71371,3685.0,3684.2,0.7798]
[1736210973615,3.0,3685.4,3684.2,0.7798]
[1736210973781,2.71355,3685.2,3684.2,0.7798]
[1736210975338,3.0,3685.7,3684.5,0.7977]
[1736210975477,3.0,3685.4,3684.5,0.7977]
[1736210976077,0.86970378,3685.7,3684.7,2.58645443]
[1736210976308,0.86970378,3685.7,3684.8,0.9674]
[1736210976309,3.0,3685.6,3684.8,0.9674]
[1736210976885,1.13575006,3685.8,3684.9,0.7734]
[1736210977688,0.7612,3686.1,3684.9,0.7734]
[1736210977897,2.71313,3685.8,3684.9,0.7734]
[1736210978581,3.7612,3686.1,3684.9,0.7734]
[1736210978781,2.71342,3685.4,3684.9,0.7734]
[1736210979125,3.0,3685.4,3684.9,0.7734]
[1736210979290,2.71341,3685.4,3684.9,0.7734]
[1736210981097,2.71349,3685.3,3684.9,0.7734]
[1736210981413,0.8108,3685.4,3684.6,0.7981]
[1736210981611,2.71378,3684.9,3684.6,0.7981]
[1736210982707,3.52425,3685.4,3684.6,0.7981]
[1736210982708,0.8108,3685.4,3684.6,0.7981]
[1736210982924,2.71358,3685.2,3684.6,0.7981]
[1736210983121,2.71338,3685.5,3684.7,2.58645443]
[1736210983324,2.71344,3685.4,3684.6,0.7981]
[1736210984103,1.13575006,3685.6,3684.6,0.7981]
[1736210984305,2.71358,3685.2,3684.6,0.7981]
[1736210990571,2.71369,3685.1,3684.6,0.7981]
[1736210990768,2.71369,3685.1,3684.2,1.40143935]
[1736210990769,2.71387,3684.8,3684.3,0.7981]
[1736210991443,0.8278,3685.1,3684.3,0.7981]
[1736210991639,2.71387,3684.8,3684.3,0.7981]
[1736210992343,3.068037,3684.8,3684.3,0.7981]
[1736210995430,0.354167,3684.8,3684.3,0.7981]
[1736210995782,1.13575006,3685.0,3684.3,0.7981]
[1736210996280,3.84946006,3685.0,3684.3,0.7981]
[1736210996867,2.71371,3685.0,3684.3,0.7981]
[1736210998679,0.0075,3684.7,3684.1,1.40143935]
[1736210998865,0.8145,3684.7,3684.1,1.40143935]
[1736210999045,0.64084544,3684.6,3684.1,1.40143935]
[1736210999534,2.71429,3684.2,3684.1,1.40143935]
[1736211000982,2.71429,3684.2,3683.6,0.7949]
[1736211000983,3.65524831,3684.2,3683.6,0.7949]
[1736211001188,3.8256,3684.1,3683.2,1.1369255]
[1736211001360,2.71495,3683.3,3683.2,1.1369255]
[1736211002854,0.828,3683.5,3682.6,1.9350255]
[1736211003191,2.71504,3683.2,3682.6,1.9350255]
[1736211003551,2.71512,3683.1,3682.6,1.9350255]
[1736211003893,2.71519,3683.0,3682.6,1.9350255]
[1736211004508,2.71519,3683.0,3682.6,0.7981]
[1736211004891,2.71527,3682.9,3682.6,0.7981]
[1736211005566,3.54286,3683.5,3681.8,3.72337993]
[1736211005567,2.71539,3682.7,3682.1,0.194]
[1736211005894,2.71499,3683.3,3682.1,0.194]
[1736211005895,2.71519,3683.0,3682.1,0.194]
[1736211006194,2.71519,3683.0,3682.2,0.7981]
[1736211006568,3.828,3683.5,3682.2,0.7981]
[1736211006762,2.71503,3683.2,3682.2,0.7981]
[1736211009020,3.85041006,3683.7,3682.9,0.7906]
[1736211009229,1.13575006,3683.7,3682.9,0.7906]
[1736211009517,1.13575006,3683.9,3683.2,0.7875]
[1736211009650,1.13575006,3683.9,3683.2,0.81464699]
[1736211009856,1.13575006,3683.9,3683.2,0.7875]
[1736211010786,2.71462,3683.8,3683.2,0.7875]
[1736211011014,0.44180051,3684.0,3683.2,0.7875]
[1736211011215,2.71465,3683.8,3683.2,0.7875]
[1736211011399,2.71459,3683.8,3683.2,0.7875]
[1736211011601,2.71444,3684.0,3683.2,0.7875]
[1736211012072,3.0,3684.2,3683.2,0.7875]
[1736211012271,5.7143,3684.2,3683.2,0.7875]
[1736211012471,3.0,3684.2,3683.2,0.7875]
[1736211012670,2.71438,3684.1,3683.2,0.7875]
[1736211014539,3.285818,3684.1,3683.2,0.7875]
[1736211014705,2.71444,3684.0,3683.2,0.7875]
[1736211016633,2.71466,3683.7,3683.2,0.7875]
[1736211020907,2.71466,3683.7,3682.9,0.7774]
[1736211020908,0.7552,3683.7,3682.9,0.7774]
[1736211021108,2.71487,3683.5,3682.9,0.7774]
[1736211021511,0.347007,3683.5,3682.3,2.58645443]
[1736211021709,0.347007,3683.5,3682.4,0.7774]
[1736211021710,2.71496,3683.3,3682.4,0.7774]
[1736211022037,0.7552,3684.0,3683.1,2.58645443]
[1736211022341,2.7143,3684.2,3683.5,0.7774]
[1736211022523,2.71412,3684.5,3683.5,0.9714]
[1736211022936,1.13575006,3684.6,3683.5,0.9714]
[1736211023117,1.13575006,3684.6,3683.6,0.7981]
[1736211023118,1.13575006,3684.3,3683.6,0.7981]
[1736211023607,1.13575006,3684.3,3683.8,0.7981]
[1736211024006,1.13575006,3684.3,3684.0,2.58645443]
[1736211024209,1.13575006,3684.3,3683.5,0.194]
[1736211024210,1.13575006,3684.3,3684.1,0.7981]
[1736211024828,2.71379,3684.9,3684.1,0.7981]
[1736211025026,2.985169,3684.9,3684.1,0.7981]
[1736211025239,0.271379,3684.9,3684.1,0.7981]
[1736211025439,2.71393,3684.7,3684.1,0.7981]
[1736211025596,2.71402,3684.6,3684.1,0.7981]
[1736211025794,2.71417,3684.4,3683.7,0.9471]
[1736211026002,0.271417,3684.3,3683.7,0.9471]
[1736211026639,2.71422,3684.3,3683.7,0.9471]
[1736211028415,0.015,3684.7,3683.7,0.9471]
[1736211028624,3.0,3684.5,3683.7,0.9471]
[1736211029014,2.71407,3684.5,3683.7,0.9471]
[1736211030762,2.714,3684.6,3683.7,0.9471]
[1736211031112,0.3799079,3684.6,3683.7,0.9471]
[1736211031319,2.71414,3684.4,3683.7,0.9471]
[1736211031813,3.3799079,3684.6,3683.7,0.7531]
[1736211032160,2.71437,3684.1,3683.7,0.7531]
[1736211033760,2.71444,3684.0,3683.4,0.194]
[1736211033933,2.71444,3684.0,3683.4,0.9615]
[1736211034252,2.71444,3684.0,3683.4,0.7675]
[1736211036115,0.8025,3684.2,3683.4,0.7675]
[1736211036116,2.71452,3683.9,3683.4,0.7675]
[1736211038974,2.71436,3684.1,3683.4,0.7675]
[1736211039772,2.71422,3684.3,3683.4,0.7675]
[1736211040615,4.13575006,3684.5,3683.5,0.7972]
[1736211041259,3.0,3684.5,3683.5,0.7972]
[1736211041678,1.13575006,3684.6,3683.5,2.7148]
[1736211041980,3.0,3684.5,3683.6,0.7981]